fUSD/lending_fUSD_20251225
["ID","MTS","AMOUNT","RATE_DAILY","PERIOD"]
[399725249,1766638082947,-4259.48505347,0.00011638,2]
[399725250,1766638084322,999.0,0.00011004,3]
[399725251,1766638094474,-300.0,0.00011637,2]
[399725252,1766638094504,-1200.0,0.00011637,2]
[399725253,1766638094562,-7000.01,0.00011638,2]
[399725254,1766638100699,-10000.01,0.00011638,2]
[399725255,1766638102007,-219.09285113,0.00011638,2]
[399725256,1766638104059,-359.52578519,0.00011638,2]
[399725257,1766638108151,-246.2038689,0.00011638,2]
[399725258,1766638111408,-195.0,0.00011638,2]
[399725264,1766638206964,-240.0,0.00011054,2]
[399725265,1766638206988,-87.1182172,0.00011054,2]
[399725266,1766638209964,-62.8817828,0.00011054,2]
[399725267,1766638209989,-159.95785756,0.00011316,2]
[399725268,1766638213690,-140.04214244,0.00011316,2]
[399725269,1766638213720,-578.800859,0.00011578,2]
[399725270,1766638213750,-825.38472764,0.00011631,2]
[399725271,1766638213780,-300.0,0.00011636,2]
[399725272,1766638213810,-300.0,0.00011636,2]
[399725273,1766638213839,-1200.0,0.00011636,2]
[399725274,1766638213869,-500.0,0.00011637,2]
[399725275,1766638213900,-441.72819276,0.00011637,2]
[399725276,1766638213934,-500.0,0.00011637,2]
[399725277,1766638214135,-428.09815632,0.00011637,2]
[399725278,1766638219692,-1674.30184368,0.00011637,2]
[399725279,1766638219722,-500.0,0.00011637,2]
[399725280,1766638219759,-500.0,0.00011637,2]
[399725281,1766638219796,-500.0,0.00011637,2]
[399725282,1766638219830,-428.21545022,0.00011637,2]
[399725283,1766638219860,-695.49180561,0.00011638,2]
[399725284,1766638219980,-1403.99180098,0.00011638,2]
[399725285,1766638225821,-3924.9446,0.00011638,2]
[399725286,1766638225847,-2150.1208,0.00011638,2]
[399725287,1766638231394,-6889.881243,0.00011638,2]
[399725288,1766638231406,-302.28095713,0.00011638,2]
[399725289,1766638231418,-310.31,0.00011638,2]
[399725290,1766638231432,-79578.95414501,0.00011638,2]
[399725291,1766638231444,-1758.76635486,0.00011638,2]
[399725292,1766638231455,-203.83328897,0.00011638,2]
[399725293,1766638231465,-79.18528957,0.00011638,2]
[399725294,1766638231477,-124.6479994,0.00011638,2]
[399725295,1766638231487,-78237.06089242,0.00011638,2]
[399725296,1766638231499,-52118.21805107,0.00011638,2]
[399725297,1766638231510,-1403.84725605,0.00011638,2]
[399725298,1766638231526,-9767.83385312,0.00011638,2]
[399725299,1766638231538,-1727.57054397,0.00011638,2]
[399725300,1766638231554,-6378.37033482,0.00011638,2]
[399725301,1766638231570,-634.47129063,0.00011638,2]
[399725302,1766638231582,-1848.75756851,0.00011638,2]
[399725303,1766638231594,-903.63050001,0.00011638,2]
[399725304,1766638231606,-265.00000012,0.00011638,2]
[399725305,1766638231617,-697.39149,0.00011638,2]
[399725306,1766638231628,-717.38573744,0.00011638,2]
[399725307,1766638231640,-491.7797,0.00011638,2]
[399725308,1766638231651,-4034.16507825,0.00011638,2]
[399725309,1766638231667,-803.70972726,0.00011638,2]
[399725310,1766638231678,-297.05507805,0.00011638,2]
[399725311,1766638231690,-1366.96461276,0.00011638,2]
[399725349,1766638237528,-496.1,0.00011637,2]
[399725350,1766638237540,-141.11073207,0.00011637,2]
[399725351,1766638237550,-154.62314346,0.00011637,2]
[399725352,1766638237560,-14.10253475,0.00011638,2]
[399725353,1766638237585,-838292.68575077,0.00011638,2]
[399725354,1766638237595,-3486.7319,0.00011731,2]
[399725355,1766638237605,-6692.3354,0.00011731,2]
[399725356,1766638237615,-1000.0,0.00011737,2]
[399725357,1766638237625,-815.01894882,0.00011738,2]
[399725358,1766638237635,-44052.03899514,0.00011738,2]
[399725359,1766638237645,-1719.91764108,0.00011738,2]
[399725360,1766638237655,-33508.6748,0.00011738,2]
[399725361,1766638237665,-1000.0,0.00011738,2]
[399725362,1766638237675,-2500.0,0.00011738,2]
[399725363,1766638237685,-825.38472763,0.00011753,2]
[399725364,1766638237695,-3042.7493,0.00011808,2]
[399725365,1766638237705,-347.10981431,0.00011821,2]
[399725366,1766638237715,-500.0,0.00011831,2]
[399725367,1766638237730,-500.0,0.00011831,2]
[399725368,1766638237739,-500.0,0.00011831,2]
[399725369,1766638237750,-500.0,0.00011831,2]
[399725370,1766638237760,-500.0,0.00011831,2]
[399725371,1766638237770,-500.0,0.00011831,2]
[399725372,1766638237781,-500.0,0.00011831,2]
[399725373,1766638237791,-500.0,0.00011831,2]
[399725374,1766638237801,-500.0,0.00011831,2]
[399725375,1766638237811,-500.0,0.00011831,2]
[399725376,1766638237821,-500.0,0.00011831,2]
[399725377,1766638237831,-500.0,0.00011831,2]
[399725378,1766638237842,-500.0,0.00011831,2]
[399725379,1766638237853,-151.0,0.00011831,2]
[399725380,1766638237864,-500.0,0.00011831,2]
[399725381,1766638237874,-500.0,0.00011831,2]
[399725382,1766638237884,-151.0,0.00011831,2]
[399725383,1766638237894,-151.0,0.00011831,2]
[399725384,1766638237904,-500.0,0.00011831,2]
[399725385,1766638237914,-500.0,0.00011831,2]
[399725386,1766638237924,-151.0,0.00011831,2]
[399725387,1766638237934,-151.0,0.00011831,2]
[399725388,1766638237944,-500.0,0.00011831,2]
[399725389,1766638237955,-500.0,0.00011831,2]
[399725390,1766638237965,-151.0,0.00011831,2]
[399725391,1766638237975,-500.0,0.00011831,2]
[399725392,1766638237984,-500.0,0.00011831,2]
[399725393,1766638237995,-151.0,0.00011831,2]
[399725394,1766638238004,-500.0,0.00011831,2]
[399725395,1766638238015,-151.0,0.00011831,2]
[399725396,1766638238025,-500.0,0.00011831,2]
[399725397,1766638238036,-151.0,0.00011831,2]
[399725398,1766638238046,-151.0,0.00011831,2]
[399725399,1766638238058,-151.0,0.00011831,2]
[399725400,1766638238073,-151.0,0.00011831,2]
[399725401,1766638238083,-151.0,0.00011831,2]
[399725402,1766638238099,-151.0,0.00011831,2]
[399725403,1766638238110,-151.0,0.00011831,2]
[399725404,1766638238120,-200.0,0.00011831,2]
[399725405,1766638238131,-151.0,0.00011831,2]
[399725406,1766638238141,-151.0,0.00011831,2]
[399725407,1766638238151,-151.0,0.00011831,2]
[399725408,1766638238162,-151.0,0.00011831,2]
[399725409,1766638238172,-151.0,0.00011831,2]
[399725410,1766638238182,-151.0,0.00011831,2]
[399725411,1766638238192,-151.0,0.00011831,2]
[399725412,1766638238203,-151.0,0.00011831,2]
[399725413,1766638238213,-151.0,0.00011831,2]
[399725414,1766638238224,-151.0,0.00011831,2]
[399725415,1766638238235,-500.0,0.00011831,2]
[399725416,1766638238245,-151.0,0.00011831,2]
[399725417,1766638238256,-151.0,0.00011831,2]
[399725418,1766638238267,-151.0,0.00011831,2]
[399725419,1766638238278,-151.0,0.00011831,2]
[399725420,1766638238288,-151.0,0.00011831,2]
[399725421,1766638238298,-151.0,0.00011831,2]
[399725422,1766638238309,-174.36183869,0.00011831,2]
[399725423,1766638238320,-200.0,0.00011831,2]
[399725424,1766638238330,-207.4,0.00011831,2]
[399725425,1766638238340,-200.0,0.00011838,2]
[399725426,1766638238351,-1462.52,0.00011838,2]
[399725427,1766638238361,-9999.99,0.00011838,2]
[399725428,1766638238371,-150.0,0.00011838,2]
[399725429,1766638238385,-512.0,0.00011838,2]
[399725430,1766638238395,-1204.5,0.00011838,2]
[399725431,1766638238406,-825.38472763,0.00011875,2]
[399725432,1766638238416,-2102.4,0.00011911,2]
[399725433,1766638238427,-200.0,0.00011956,2]
[399725434,1766638238437,-5431.02,0.00011975,2]
[399725435,1766638238447,-150.99,0.00011975,2]
[399725436,1766638238462,-4999.99,0.00011975,2]
[399725437,1766638238473,-65161.34842379,0.00011975,2]
[399725438,1766638238492,-503.93718342,0.00011975,2]
[399725439,1766638238504,-1868.60706703,0.00011975,2]
[399725440,1766638238516,-95841.99732576,0.00011975,2]
[399725441,1766638238526,-13938.24,0.00011975,2]
[399725442,1766638238536,-9999.99,0.00011975,2]
[399725443,1766638238546,-499.99,0.00011975,2]
[399725444,1766638238556,-309.16,0.00011975,2]
[399725445,1766638238567,-5695.12,0.00011975,2]
[399725446,1766638238577,-3168.57,0.00011975,2]
[399725447,1766638238587,-203.0,0.00012074,2]
[399725448,1766638238598,-235.0,0.00012075,2]
[399725449,1766638238608,-200.0,0.00012076,2]
[399725450,1766638238618,-139721.63,0.00012076,2]
[399725451,1766638238629,-150.99,0.00012076,2]
[399725452,1766638238639,-23338.72,0.00012087,2]
[399725453,1766638238649,-9999.99,0.00012087,2]
[399725454,1766638238659,-999.99,0.00012087,2]
[399725455,1766638238670,-9999.99,0.00012087,2]
[399725456,1766638238681,-9999.99,0.00012087,2]
[399725457,1766638238691,-42614.1,0.00012087,2]
[399725458,1766638238701,-9135.11,0.00012087,2]
[399725459,1766638238711,-299.99,0.00012087,2]
[399725460,1766638238721,-220.0,0.00012098,2]
[399725461,1766638238731,-490.0,0.00012099,2]
[399725462,1766638238740,-1671.99,0.00012101,2]
[399725463,1766638238750,-500.0,0.00012105,2]
[399725464,1766638238761,-261.0,0.00012123,2]
[399725465,1766638238771,-337988.81940265,0.00012126,2]
[399725466,1766638238781,-1000.0,0.00012137,2]
[399725467,1766638238790,-222.0,0.00012147,2]
[399725468,1766638238800,-340.0,0.00012148,2]
[399725469,1766638238816,-1513.0,0.00012159,2]
[399725470,1766638238827,-250.0,0.00012159,2]
[399725471,1766638238837,-300.0,0.0001216,2]
[399725472,1766638238847,-296.15569484,0.00012172,2]
[399725473,1766638238858,-348.0,0.00012184,2]
[399725474,1766638238868,-2102.4,0.00012185,2]
[399725475,1766638238879,-1731.0,0.00012208,2]
[399725476,1766638238889,-24378.81116528,0.00012223,2]
[399725477,1766638238900,-1061.0,0.00012232,2]
[399725478,1766638238911,-1214.0,0.00012256,2]
[399725479,1766638238922,-166.66,0.00012262,2]
[399725480,1766638238932,-1287.0,0.00012281,2]
[399725481,1766638238942,-287.54268818,0.00012284,2]
[399725482,1766638238952,-1000.0,0.00012305,2]
[399725483,1766638238963,-44052.03899512,0.00012312,2]
[399725484,1766638238973,-500.0,0.00012379,2]
[399725485,1766638238985,-200.0,0.00012379,2]
[399725486,1766638238995,-500.0,0.00012379,2]
[399725487,1766638239006,-200.0,0.00012379,2]
[399725488,1766638239017,-162.74,0.00012415,2]
[399725489,1766638239027,-2102.4,0.00012459,2]
[399725490,1766638239038,-1671.99,0.0001248,2]
[399725491,1766638239048,-300.0,0.00012556,2]
[399725492,1766638239059,-250.0,0.00012556,2]
[399725493,1766638239070,-300.0,0.00012556,2]
[399725494,1766638239080,-200.90950559,0.00012598,2]
[399725495,1766638239090,-507.31246157,0.00012653,2]
[399725496,1766638239100,-166.66,0.00012667,2]
[399725497,1766638239110,-600.0,0.00012668,2]
[399725498,1766638239120,-440.1,0.00012668,2]
[399725499,1766638239131,-255.0,0.00012708,2]
[399725500,1766638239140,-2102.4,0.00012733,2]
[399725501,1766638239151,-300.0,0.00012736,2]
[399725502,1766638239162,-420.0,0.00012779,2]
[399725503,1766638239176,-420.0,0.00012779,2]
[399725504,1766638239187,-151.0,0.0001278,2]
[399725506,1766638239509,-1680.0,0.0001278,2]
[399725507,1766638239521,-1680.0,0.000128,2]
[399725508,1766638239531,-24378.81116528,0.00012807,2]
[399725509,1766638239542,-555.17451406,0.00012825,2]
[399725511,1766638239551,-1671.99,0.00012858,2]
[399725512,1766638239561,-44052.03899512,0.00012885,2]
[399725513,1766638239571,-16467.07764626,0.00012891,2]
[399725514,1766638239580,-200.0,0.00012927,2]
[399725515,1766638239589,-500.0,0.00012927,2]
[399725516,1766638239599,-200.0,0.00012927,2]
[399725517,1766638239609,-2102.4,0.00013007,2]
[399725518,1766638239619,-166.66,0.00013072,2]
[399725519,1766638239629,-335.63,0.00013132,2]
[399725520,1766638239638,-1671.99,0.00013236,2]
[399725521,1766638239662,-162.74,0.00013243,2]
[399725522,1766638239673,-2102.4,0.00013281,2]
[399725523,1766638239684,-24378.81116528,0.00013392,2]
[399725524,1766638239694,-150.0,0.00013402,2]
[399725525,1766638239704,-1719.91764105,0.00013416,2]
[399725526,1766638239714,-44052.03899512,0.00013459,2]
[399725527,1766638239724,-200.0,0.00013475,2]
[399725528,1766638239734,-500.0,0.00013475,2]
[399725529,1766638239744,-200.0,0.00013475,2]
[399725530,1766638239754,-166.66,0.00013477,2]
[399725531,1766638239764,-2102.4,0.00013555,2]
[399725532,1766638239775,-1671.99,0.00013614,2]
[399725533,1766638239786,-500.0,0.00013698,2]
[399725534,1766638239796,-500.0,0.00013698,2]
[399725535,1766638239806,-500.0,0.00013698,2]
[399725536,1766638239816,-500.0,0.00013698,2]
[399725537,1766638239826,-500.0,0.00013698,2]
[399725538,1766638239836,-500.0,0.00013698,2]
[399725539,1766638239846,-500.0,0.00013698,2]
[399725540,1766638239857,-602.90869364,0.00013698,2]
[399725541,1766638239867,-590.97,0.00013698,2]
[399725542,1766638239877,-590.97,0.00013698,2]
[399725543,1766638239887,-590.97,0.00013698,2]
[399725544,1766638239897,-500.0,0.00013698,2]
[399725545,1766638239907,-500.0,0.00013698,2]
[399725546,1766638239917,-500.0,0.00013698,2]
[399725547,1766638239928,-500.0,0.00013698,2]
[399725548,1766638239937,-500.93767217,0.00013698,2]
[399725549,1766638239948,-500.0,0.00013698,2]
[399725550,1766638239958,-500.62299513,0.00013698,2]
[399725551,1766638239968,-500.0,0.00013698,2]
[399725552,1766638239978,-500.0,0.00013698,2]
[399725553,1766638239988,-500.0,0.00013698,2]
[399725554,1766638239998,-699.05,0.00013698,2]
[399725555,1766638240009,-699.05,0.00013698,2]
[399725556,1766638240019,-699.05,0.00013698,2]
[399725557,1766638240030,-699.05,0.00013698,2]
[399725558,1766638240040,-699.05,0.00013698,2]
[399725559,1766638240050,-699.05,0.00013698,2]
[399725560,1766638240060,-500.0,0.00013698,2]
[399725561,1766638240070,-500.0,0.00013698,2]
[399725562,1766638240080,-500.0,0.00013698,2]
[399725563,1766638240090,-500.0,0.00013698,2]
[399725564,1766638240100,-563.0266574,0.00013698,2]
[399725565,1766638240110,-500.0,0.00013698,2]
[399725566,1766638240120,-500.0,0.00013698,2]
[399725567,1766638240130,-500.0,0.00013698,2]
[399725568,1766638240140,-500.0,0.00013698,2]
[399725569,1766638240150,-500.0,0.00013698,2]
[399725570,1766638240160,-500.0,0.00013698,2]
[399725571,1766638240171,-500.0,0.00013698,2]
[399725572,1766638240180,-500.0,0.00013698,2]
[399725573,1766638240190,-500.0,0.00013698,2]
[399725574,1766638240199,-500.0,0.00013698,2]
[399725575,1766638240209,-500.0,0.00013698,2]
[399725576,1766638240219,-500.0,0.00013698,2]
[399725577,1766638240229,-500.0,0.00013698,2]
[399725578,1766638240239,-500.0,0.00013698,2]
[399725579,1766638240248,-500.0,0.00013698,2]
[399725580,1766638240259,-500.0,0.00013698,2]
[399725581,1766638240268,-500.0,0.00013698,2]
[399725582,1766638240279,-500.0,0.00013698,2]
[399725583,1766638240288,-500.0,0.00013698,2]
[399725584,1766638240298,-500.0,0.00013698,2]
[399725585,1766638240308,-500.0,0.00013698,2]
[399725586,1766638240317,-500.0,0.00013698,2]
[399725587,1766638240326,-500.0,0.00013698,2]
[399725588,1766638240336,-500.0,0.00013698,2]
[399725589,1766638240345,-500.0,0.00013698,2]
[399725590,1766638240355,-500.0,0.00013698,2]
[399725591,1766638240365,-500.0,0.00013698,2]
[399725592,1766638240375,-500.0,0.00013698,2]
[399725593,1766638240389,-500.0,0.00013698,2]
[399725594,1766638240399,-500.0,0.00013698,2]
[399725595,1766638240408,-500.0,0.00013698,2]
[399725596,1766638240418,-500.0,0.00013698,2]
[399725597,1766638240429,-500.0,0.00013698,2]
[399725598,1766638240439,-500.0,0.00013698,2]
[399725599,1766638240450,-500.0,0.00013698,2]
[399725600,1766638240460,-500.0,0.00013698,2]
[399725601,1766638240470,-500.0,0.00013698,2]
[399725602,1766638240479,-500.0,0.00013698,2]
[399725603,1766638240489,-500.0,0.00013698,2]
[399725604,1766638240498,-500.0,0.00013698,2]
[399725605,1766638240508,-500.0,0.00013698,2]
[399725606,1766638240517,-500.0,0.00013698,2]
[399725607,1766638240527,-500.0,0.00013698,2]
[399725608,1766638240537,-500.0,0.00013698,2]
[399725609,1766638240547,-500.0,0.00013698,2]
[399725610,1766638240556,-500.0,0.00013698,2]
[399725611,1766638240566,-500.0,0.00013698,2]
[399725612,1766638240576,-500.0,0.00013698,2]
[399725613,1766638240585,-500.0,0.00013698,2]
[399725614,1766638240595,-500.0,0.00013698,2]
[399725615,1766638240604,-595.20438035,0.00013698,2]
[399725616,1766638240614,-500.0,0.00013698,2]
[399725617,1766638240624,-500.0,0.00013698,2]
[399725618,1766638240633,-500.0,0.00013698,2]
[399725619,1766638240643,-500.0,0.00013698,2]
[399725620,1766638240653,-500.0,0.00013698,2]
[399725621,1766638240662,-500.0,0.00013698,2]
[399725622,1766638240672,-545.87,0.00013698,2]
[399725623,1766638240681,-545.87,0.00013698,2]
[399725624,1766638240691,-545.87,0.00013698,2]
[399725625,1766638240700,-545.87,0.00013698,2]
[399725626,1766638240710,-545.87,0.00013698,2]
[399725627,1766638240719,-545.87,0.00013698,2]
[399725628,1766638240728,-545.87,0.00013698,2]
[399725629,1766638240738,-500.0,0.00013698,2]
[399725630,1766638240747,-500.0,0.00013698,2]
[399725631,1766638240758,-500.0,0.00013698,2]
[399725632,1766638240768,-500.0,0.00013698,2]
[399725633,1766638240777,-500.0,0.00013698,2]
[399725634,1766638240787,-534.14774107,0.00013698,2]
[399725635,1766638240796,-500.0,0.00013698,2]
[399725636,1766638240806,-500.0,0.00013698,2]
[399725637,1766638240815,-500.0,0.00013698,2]
[399725638,1766638240825,-500.0,0.00013698,2]
[399725639,1766638240836,-500.0,0.00013698,2]
[399725640,1766638240845,-500.0,0.00013698,2]
[399725641,1766638240855,-827.76,0.00013698,2]
[399725642,1766638240865,-500.0,0.00013698,2]
[399725643,1766638240875,-827.76,0.00013698,2]
[399725644,1766638240885,-500.0,0.00013698,2]
[399725645,1766638240894,-827.76,0.00013698,2]
[399725646,1766638240904,-500.0,0.00013698,2]
[399725647,1766638240914,-827.76,0.00013698,2]
[399725648,1766638240924,-500.0,0.00013698,2]
[399725649,1766638240935,-827.76,0.00013698,2]
[399725650,1766638240945,-500.0,0.00013698,2]
[399725651,1766638240955,-827.76,0.00013698,2]
[399725652,1766638240965,-827.76,0.00013698,2]
[399725653,1766638240976,-321.45865313,0.00013698,2]
[399725654,1766638240986,-500.0,0.00013698,2]
[399725655,1766638240996,-500.0,0.00013698,2]
[399725656,1766638241007,-500.0,0.00013698,2]
[399725657,1766638241016,-500.0,0.00013698,2]
[399725658,1766638241027,-524.26514358,0.00013698,2]
[399725659,1766638241037,-500.0,0.00013698,2]
[399725660,1766638241047,-500.0,0.00013698,2]
[399725661,1766638241057,-500.0,0.00013698,2]
[399725662,1766638241067,-500.0,0.00013698,2]
[399725663,1766638241077,-500.0,0.00013698,2]
[399725664,1766638241088,-407.20578613,0.00013698,2]
[399725665,1766638241098,-500.0,0.00013698,2]
[399725666,1766638241109,-500.0,0.00013698,2]
[399725667,1766638241119,-500.0,0.00013698,2]
[399725668,1766638241129,-517.77618864,0.00013698,2]
[399725669,1766638241140,-500.0,0.00013698,2]
[399725670,1766638241150,-500.0,0.00013698,2]
[399725671,1766638241162,-500.0,0.00013698,2]
[399725672,1766638241172,-500.0,0.00013698,2]
[399725673,1766638241182,-500.0,0.00013698,2]
[399725674,1766638241192,-500.0,0.00013698,2]
[399725675,1766638241202,-500.0,0.00013698,2]
[399725676,1766638241212,-500.0,0.00013698,2]
[399725677,1766638241225,-500.0,0.00013698,2]
[399725678,1766638241235,-589.40226539,0.00013698,2]
[399725679,1766638241245,-1000.0,0.00013699,2]
[399725680,1766638241255,-613.33,0.00013699,2]
[399725681,1766638241267,-500.0,0.00013699,2]
[399725682,1766638241277,-500.0,0.00013699,2]
[399725683,1766638241287,-500.0,0.00013699,2]
[399725684,1766638241298,-500.0,0.00013699,2]
[399725685,1766638241308,-500.0,0.00013699,2]
[399725686,1766638241319,-500.0,0.00013699,2]
[399725687,1766638241329,-500.0,0.00013699,2]
[399725688,1766638241339,-500.0,0.00013699,2]
[399725689,1766638241349,-500.0,0.00013699,2]
[399725690,1766638241360,-500.0,0.00013699,2]
[399725691,1766638241370,-500.0,0.00013699,2]
[399725692,1766638241382,-500.0,0.00013699,2]
[399725693,1766638241393,-218.37293,0.00013699,2]
[399725694,1766638241403,-500.0,0.00013699,2]
[399725695,1766638241413,-2372.67,0.000137,2]
[399725696,1766638241423,-2372.67,0.000137,2]
[399725697,1766638241434,-2372.67,0.000137,2]
[399725698,1766638241444,-2372.67,0.000137,2]
[399725699,1766638241455,-2372.67,0.000137,2]
[399725700,1766638241466,-2102.4,0.00013829,2]
[399725701,1766638241477,-433.0,0.00013871,2]
[399725702,1766638241487,-166.66,0.00013881,2]
[399725703,1766638241498,-24378.81116528,0.00013977,2]
[399725704,1766638241507,-500.0,0.00013989,2]
[399725705,1766638241517,-500.0,0.00013989,2]
[399725706,1766638241528,-590.97,0.00013989,2]
[399725707,1766638241539,-500.0,0.00013989,2]
[399725708,1766638241549,-500.0,0.00013989,2]
[399725709,1766638241560,-500.0,0.00013989,2]
[399725710,1766638241570,-500.0,0.00013989,2]
[399725711,1766638241581,-500.0,0.00013989,2]
[399725712,1766638241592,-1671.99,0.00013992,2]
[399725713,1766638241602,-200.0,0.00014023,2]
[399725714,1766638241612,-500.0,0.00014023,2]
[399725715,1766638241623,-200.0,0.00014023,2]
[399725716,1766638241634,-151.0,0.00014031,2]
[399725717,1766638241644,-699.05,0.00014032,2]
[399725718,1766638241654,-500.0,0.00014032,2]
[399725719,1766638241664,-44052.03899512,0.00014032,2]
[399725720,1766638241673,-587.0,0.00014033,2]
[399725721,1766638241683,-587.0,0.00014033,2]
[399725722,1766638241694,-2351.0,0.00014034,2]
[399725723,1766638241703,-162.74,0.00014071,2]
[399725724,1766638241713,-2351.0,0.0001408,2]
[399725725,1766638241723,-2102.4,0.00014103,2]
[399725726,1766638241733,-151.0,0.00014106,2]
[399725727,1766638241742,-151.0,0.0001414,2]
[399725728,1766638241753,-1000.0,0.00014207,2]
[399725729,1766638241763,-166.66,0.00014286,2]
[399725730,1766638241773,-600.0,0.0001436,2]
[399725731,1766638241783,-440.1,0.0001436,2]
[399725732,1766638241792,-1671.99,0.0001437,2]
[399725733,1766638241802,-2102.4,0.00014377,2]
[399725734,1766638241812,-10000.0,0.0001451,2]
[399725735,1766638241822,-24378.81116528,0.00014561,2]
[399725736,1766638241832,-215.0738,0.0001457,2]
[399725737,1766638241842,-200.0,0.00014571,2]
[399725738,1766638241852,-500.0,0.00014571,2]
[399725739,1766638241861,-200.0,0.00014571,2]
[399725740,1766638241872,-500.0,0.00014605,2]
[399725741,1766638241882,-500.0,0.00014605,2]
[399725742,1766638241894,-500.0,0.00014605,2]
[399725743,1766638241904,-500.0,0.00014605,2]
[399725744,1766638241914,-500.0,0.00014605,2]
[399725745,1766638241923,-545.87,0.00014605,2]
[399725746,1766638241933,-500.0,0.00014605,2]
[399725747,1766638241942,-500.0,0.00014605,2]
[399725748,1766638241952,-44052.03899512,0.00014606,2]
[399725749,1766638241962,-250.0,0.00014606,2]
[399725750,1766638241972,-2102.4,0.00014651,2]
[399725751,1766638241982,-162.74,0.00014898,2]
[399725752,1766638241991,-246.80340688,0.000149,2]
[399725753,1766638242001,-2102.4,0.00014925,2]
[399725754,1766638242012,-13773.56,0.00014983,2]
[399725755,1766638242021,-600.0,0.00015021,2]
[399725756,1766638242032,-440.1,0.00015021,2]
[399725757,1766638242042,-1719.91764105,0.00015093,2]
[399725758,1766638242053,-200.0,0.00015119,2]
[399725759,1766638242063,-500.0,0.00015119,2]
[399725760,1766638242074,-200.0,0.00015119,2]
[399725761,1766638242085,-24378.81116528,0.00015146,2]
[399725762,1766638242095,-736.0,0.00015151,2]
[399725763,1766638242104,-44052.03899512,0.00015179,2]
[399725764,1766638242114,-2102.4,0.00015199,2]
[399725765,1766638242124,-169.12623375,0.00015288,2]
[399725766,1766638242134,-150.0,0.00015288,2]
[399725767,1766638242144,-150.0,0.00015288,2]
[399725768,1766638242155,-201.98052348,0.00015288,2]
[399725769,1766638242165,-150.0,0.00015288,2]
[399725770,1766638242175,-150.0,0.00015288,2]
[399725771,1766638242185,-295.90574568,0.00015288,2]
[399725772,1766638242194,-150.0,0.00015288,2]
[399725773,1766638242204,-150.0,0.00015288,2]
[399725774,1766638242214,-150.0,0.00015288,2]
[399725775,1766638242224,-150.0,0.00015288,2]
[399725776,1766638242234,-150.0,0.00015288,2]
[399725777,1766638242244,-150.0,0.00015288,2]
[399725778,1766638242255,-191.79160584,0.00015288,2]
[399725779,1766638242265,-150.0,0.00015288,2]
[399725780,1766638242275,-150.0,0.00015288,2]
[399725781,1766638242285,-150.0,0.00015288,2]
[399725782,1766638242295,-169.12623375,0.00015305,2]
[399725783,1766638242307,-201.98052348,0.00015305,2]
[399725784,1766638242317,-295.90574568,0.00015305,2]
[399725785,1766638242327,-150.0,0.00015306,2]
[399725786,1766638242337,-150.0,0.00015307,2]
[399725787,1766638242347,-150.0,0.00015312,2]
[399725788,1766638242356,-150.0,0.00015313,2]
[399725789,1766638242366,-169.12623375,0.00015322,2]
[399725790,1766638242376,-201.98052348,0.00015322,2]
[399725791,1766638242391,-295.90574568,0.00015322,2]
[399725792,1766638242402,-150.0,0.00015323,2]